[Event "Bangabandhu Premier Div League 2022"]
[Site "Dhaka"]
[Date "2022.12.01"]
[Round "2.11"]
[White "Mohammad Nubairshah Shaikh"]
[Black "Rakhmanov, Aleksandr"]
[Result "0-1"]
[ECO "D31"]
[WhiteElo "2439"]
[BlackElo "2630"]
[Annotator "TA"]
[PlyCount "96"]
[EventDate "2022.11.30"]
[EventType "team-tourn"]
[EventCountry "BAN"]
[SourceTitle "playchess.com"]
[Source "ChessBase"]
[SourceQuality "1"]
[TimeControl "40/5400+30:1800+30"]

{[%evp 9,96,12,17,18,13,17,17,16,15,13,33,6,7,6,8,12,6,0,0,0,0,0,0,-12,0,0,0,-20,-18,-17,-16,-27,0,0,0,0,0,0,12,-6,0,0,0,-6,0,0,0,-7,0,0,20,4,39,14,21,0,0,0,11,11,8,8,12,11,8,0,0,0,0,0,0,0,0,0,0,0,0,-47,-77,-80,-85,-80,-80,-80,-79,-29997,-29998,-29998,-29999]} 1. d4 {[%emt 0:00:04]} d5 {[%emt 0:00:37]} 2. c4 {[%emt 0:00:15]} e6 {[%emt 0:02:32]} 3. Nc3 {[%emt 0:00:06]} a6 {[%emt 0:00:13]} 4. cxd5 {[%emt 0:00:51]} exd5 {[%emt 0:00:06]} 5. Bf4 {[%emt 0:00:03]} Nf6 {[%emt 0:00:29]} 6. e3 {[%emt 0:00:15] D31: Queen's Gambit Declined: Semi-Slav without ...Nf6 (+ Marshall Gambit and Noteboom) and Exchange Variation lines without ...Nf6.} Bd6 {[%emt 0:00:20]} 7. Bxd6 {[%emt 0:02:21]} Qxd6 {[%emt 0:00:34]} 8. Bd3 {[%emt 0:00:03] The position is equal.} O-O {[%emt 0:01:14]} 9. Rc1 {[%emt 0:10:58]} Bg4 {[%emt 0:01:28]} 10. Nge2 {[%emt 0:02:12]} Re8 {[%emt 0:03:52]} (10... Bxe2 {simplifies} 11. Nxe2 Re8 12. O-O Nbd7) 11. O-O {[%emt 0:02:34]} Nbd7 {[%emt 0:04:26] [#]} 12. Qc2 $146 {[%emt 0:10:25]} ({Predecessor:} 12. h3 Bh5 13. Qc2 Bg6 14. Nf4 Bxd3 15. Nxd3 c6 16. Na4 Qe7 17. Nac5 Nxc5 18. Nxc5 {½-½ (32) Kokkalis,V (2140)-Simeonidis,I (2197) Chania 2018}) 12... Bxe2 {[%emt 0:00:52]} 13. Qxe2 {[%emt 0:18:22]} c6 {[%emt 0:02:08]} 14. Bf5 {[%emt 0:12:28]} g6 {[%emt 0:03:58]} 15. Bxd7 {[%emt 0:01:05]} Nxd7 {[%emt 0:01:10]} 16. Na4 {[%emt 0:00:24]} Re4 {[%emt 0:01:30]} 17. Qf3 {[%emt 0:05:17]} Rae8 {[%emt 0:03:48]} 18. Nc5 {[%emt 0:01:04]} Nxc5 {[%emt 0:00:31]} 19. Rxc5 {[%emt 0:00:04]} f5 {[%emt 0:02:19]} 20. g3 {[%emt 0:01:33] Inhibits f4.} Qe6 {[%emt 0:15:34]} (20... Rf8 $5 {[%cal Rg6g5]}) 21. h4 {[%emt 0:05:16]} Rg4 {[%emt 0:02:46]} 22. Kg2 {[%emt 0:02:38]} Rf8 {[%emt 0:08:14][%cal Of5f4]} 23. Rc3 {[%emt 0:05:50] Against f4} h6 {[%emt 0:10:14]} 24. Re1 {[%emt 0:06:17]} (24. Qd1 $5 Qd6 $8 25. Rh1 $11) 24... Kg7 {[%emt 0:05:46]} (24... Rxd4 25. exd4 Qxe1 26. Re3 $16) 25. Rcc1 {[%emt 0:01:53]} (25. Qd1 $5 Qd6 $8 26. Rh1 $11) 25... Qd7 {[%emt 0:09:01]} 26. Kf1 {[%emt 0:00:30]} Re4 {[%emt 0:00:30]} 27. Kg2 {[%emt 0:00:30]} Rg4 {[%emt 0:00:30]} 28. Kf1 {[%emt 0:00:30]} Re4 {[%emt 0:00:30]} 29. Kg2 {[%emt 0:01:34]} Rfe8 {[%emt 0:00:30]} 30. a4 {[%emt 0:00:00]} Qf7 {[%emt 0:00:30]} 31. Rh1 {[%emt 0:02:01]} (31. b4 {seems wilder.} g5 32. hxg5 hxg5 33. Rh1) 31... Qf8 {[%emt 0:08:58]} (31... a5 {simplifies} 32. Rb1 R4e7 33. b4 axb4 34. Rxb4 Ra8) 32. b4 {[%emt 0:04:49]} Qxb4 {[%emt 0:00:48]} 33. h5 {[%emt 0:00:30]} g5 {[%emt 0:05:13]} 34. Rb1 {[%emt 0:00:00]} Qe7 {[%emt 0:00:30]} (34... Qf8 35. Rxb7+ R8e7 36. Rb6 $18) 35. Qxf5 {[%emt 0:00:16]} Re6 {[%emt 0:06:19] Prevents Qg6+.} 36. Rb6 Rf8 {[%emt 0:00:00]} 37. Qb1 {[%emt 0:00:42]} Rf7 {[%emt 0:00:00]} 38. Rd1 {[%emt 0:01:33]} Qf6 {[%emt 0:00:00]} 39. Rd2 {[%emt 0:00:19]} Ree7 {[%emt 0:00:50]} 40. Rdb2 {[%emt 0:00:20]} g4 {[%emt 0:00:57]} 41. a5 {[%emt 0:21:33]} Kf8 {[%emt 0:04:04] Threatens to win with ...Qf3+.} 42. Kg1 {[%emt 0:04:43]} (42. Rxb7 $2 {loses.} Rxb7 43. Rxb7 Qxf2+ 44. Kh1 Qf3+ 45. Kh2 Qe2+ 46. Kg1 Qxe3+ 47. Kh1 Qe4+ 48. Qxe4 dxe4 $19) 42... Qf3 {[%emt 0:02:33] And now ...Rf5 would win.} 43. Qc2 {[%emt 0:06:51] [#]} (43. Qg6 $11 Rf6 44. Qd3) 43... Rxe3 $1 $15 {[%emt 0:09:26][%cal Be7e3,Be3d3,Bd3d1][%mdl 32]} 44. Qd2 {[%emt 0:00:11] Against Re1+} (44. fxe3 $2 {gets mated.} Qf1+ 45. Kh2 Qh3+ 46. Kg1 Rf1#) 44... Rd3 $40 {[%emt 0:04:34][%mdl 128] Black attacks with force. Black is more active.} 45. Qxh6+ {[%emt 0:00:01]} Kg8 {[%emt 0:01:46] ( -> ...Rd1+)} 46. Rd2 {[%emt 0:00:26] aiming for Qg6+.} (46. Rxb7 $2 {is a self mate.} Rd1+ 47. Kh2 Qh1#) 46... Qf5 {[%emt 0:07:09][%cal Od3g3] Hoping for ...Rxg3+! Chess con chili.} 47. Re2 $2 {[%emt 0:02:22][%mdl 8192]} (47. Qg6+ $17 Qxg6 48. hxg6 Rxd2 49. gxf7+ Kxf7 50. Rxb7+ Ke6 51. Ra7) 47... Rd1+ {[%emt 0:00:10]} 48. Kh2 {[%emt 0:00:01] [#]} Qxf2+ $1 {[%emt 0:00:08][%mdl 512] Weighted Error Value: White=0.14 (very precise) /Black=0.03 (flawless)} 0-1

[Event "Bangabandhu Premier Div League 2022"]
[Site "Dhaka"]
[Date "2022.12.01"]
[Round "2.12"]
[White "Zia, Tahsin Tajwar"]
[Black "Ikramul, Haq Siam"]
[Result "1/2-1/2"]
[ECO "D15"]
[WhiteElo "2241"]
[BlackElo "2099"]
[Annotator "TA"]
[PlyCount "60"]
[EventDate "2022.11.30"]
[EventType "team-tourn"]
[EventCountry "BAN"]
[SourceTitle "playchess.com"]
[Source "ChessBase"]
[SourceQuality "1"]
[TimeControl "40/5400+30:1800+30"]

{[%evp 9,60,-12,-15,-8,20,-20,-15,-58,-25,-62,-7,-49,-37,-43,-22,-25,0,-35,-34,-32,-35,-45,10,14,11,13,14,15,73,0,10,0,0,0,0,0,0,0,0,0,0,0,0,0,0,0,0,0,0,0,0,0,0]} 1. d4 {[%emt 0:00:12]} d5 {[%emt 0:00:03]} 2. Nf3 {[%emt 0:01:15]} Nf6 {[%emt 0:00:53]} 3. c4 {[%emt 0:00:24]} c6 {[%emt 0:00:10]} 4. Nc3 {[%emt 0:04:05]} dxc4 {[%emt 0:02:42]} 5. e4 {[%emt 0:00:21]} b5 $1 {[%emt 0:00:13]} 6. Be2 {[%emt 0:01:01] D15: Slav Defence: 4 Nc3 a6 and gambit lines after 4 Nc3 dxc4.} Bb7 {[%emt 0:02:48]} 7. O-O {[%emt 0:03:01][%mdl 1024] White has compensation.} e6 $1 {[%emt 0:00:43]} 8. a4 {[%emt 0:01:20]} a6 {[%emt 0:01:48]} 9. Bg5 {[%emt 0:02:36]} h6 {[%emt 0:06:30] Prevents e5.} (9... Nbd7 $15) 10. Bh4 {[%emt 0:15:52] [#]} Be7 $146 {[%emt 0:09:18]} (10... Nbd7 $5) ({Predecessor:} 10... g5 11. Bg3 Nbd7 12. h4 b4 13. e5 bxc3 14. exf6 cxb2 15. Rb1 g4 16. Ne5 Nxe5 17. Bxe5 {1-0 (41) Ollier,P (2365)-Huschenbeth,N (2581) Chess.com INT 2017}) 11. e5 {[%emt 0:19:24]} Nd5 {[%emt 0:00:12][%cal Bf6d5,Bd5c3,Bc3d1][%mdl 32]} 12. Bxe7 {[%emt 0:01:00]} Nxc3 {[%emt 0:01:13]} 13. Bxd8 {[%emt 0:03:37]} (13. bxc3 $5 {[%cal Re7d8]} Qxe7 14. Nd2 $11) 13... Nxd1 {[%emt 0:00:06]} 14. Rfxd1 {[%emt 0:00:14] [#] aiming for Bc7.} Kxd8 {[%emt 0:00:15]} 15. Nd2 {[%emt 0:00:22]} f5 {[%emt 0:11:25] Prevents Ne4.} (15... Kc7 $15) 16. exf6 $11 {[%emt 0:19:49]} gxf6 {[%emt 0:00:05]} 17. b3 {[%emt 0:01:50]} cxb3 {[%emt 0:10:56]} ({Much less strong is} 17... c3 18. Ne4 $16) 18. Nxb3 {[%emt 0:00:17] With the idea Nc5.} Kc7 {[%emt 0:01:19]} (18... Nd7 $11 {remains equal.}) 19. Rdc1 {[%emt 0:09:21] White is more active.} (19. Nc5 $16) 19... Nd7 {[%emt 0:26:17] The position is equal.} 20. axb5 {[%emt 0:02:56]} axb5 {[%emt 0:00:16]} 21. Rxa8 {[%emt 0:00:52]} Rxa8 {[%emt 0:04:43]} 22. Bxb5 {[%emt 0:00:45]} Kd6 {[%emt 0:01:04]} 23. Be2 {[%emt 0:03:47]} Ba6 {[%emt 0:03:25]} 24. Rxc6+ {[%emt 0:05:53]} Kxc6 {[%emt 0:00:03]} 25. Bf3+ {[%emt 0:00:06]} Kb5 {[%emt 0:00:16]} 26. Bxa8 {[%emt 0:00:08]} Kc4 {[%emt 0:16:47] Against d5} 27. Nc5 {[%emt 0:03:32]} Nxc5 {[%emt 0:00:00]} 28. dxc5 {[%emt 0:00:00]} Kxc5 {[%emt 0:01:00]} 29. f3 {[%emt 0:00:01]} Kd4 {[%emt 0:00:30]} 30. Kf2 {[%emt 0:01:29]} Ke5 {[%emt 0:00:00] Weighted Error Value: White=0.16 (very precise) /Black=0.17 (very precise)} 1/2-1/2

[Event "Bangabandhu Premier Div League 2022"]
[Site "Dhaka"]
[Date "2022.12.02"]
[Round "3.1"]
[White "Abu Sufian, Shakil"]
[Black "Anata, Choudhury"]
[Result "1-0"]
[ECO "B51"]
[WhiteElo "2229"]
[BlackElo "2176"]
[Annotator "TA"]
[PlyCount "83"]
[EventDate "2022.12.01"]
[EventCountry "BAN"]
[SourceTitle "playchess.com"]
[Source "ChessBase"]
[SourceQuality "1"]
[TimeControl "40/5400+30:1800+30"]

{[%evp 14,83,46,49,72,-23,-9,-22,12,8,23,20,18,0,0,-61,-58,-69,47,49,58,50,164,160,164,169,173,166,158,170,145,146,148,148,189,196,185,171,231,208,244,226,241,239,254,249,265,272,319,324,386,359,372,306,305,302,268,253,402,391,496,494,478,431,568,554,554,556,2700,510,576,556]} 1. e4 {[%emt 0:00:04]} c5 {[%emt 0:00:19]} 2. Nf3 {[%emt 0:00:07]} d6 {[%emt 0:00:10]} 3. Bb5+ {[%emt 1:31:49]} Nd7 {[%emt 0:00:08]} 4. d4 {[%emt 0:00:00]} cxd4 {[%emt 0:00:22]} 5. Qxd4 {[%emt 0:00:00]} Ngf6 {[%emt 1:32:01]} 6. Bg5 {[%emt 0:01:30]} a6 {[%emt 0:00:00] The main line 6...a6 scores better than 6...e6.} 7. Bxd7+ {[%emt 0:00:30]} Bxd7 {[%emt 0:01:00]} 8. Nc3 {[%emt 0:00:30]} h6 {[%emt 0:00:30] B51: Sicilian: Moscow Variation (3 Bb5+) without 3...Bd7.} 9. Bh4 {[%emt 0:00:30]} ({White should play} 9. Bxf6 $16 gxf6 10. O-O) 9... g5 $11 {[%emt 0:00:30]} 10. Bg3 {[%emt 0:00:30]} e5 {[%emt 0:00:30] The position is equal.} 11. Qd3 {[%emt 0:00:30]} Be6 {[%emt 0:00:30]} 12. O-O-O {[%emt 0:00:30] [#]} Rc8 $146 {[%emt 0:00:30]} ({Predecessor:} 12... Qa5 13. a3 Rc8 14. Rhe1 Be7 15. Nd2 b5 16. Kb1 b4 17. axb4 Qxb4 {0-1 (71) Maghsoodloo,P (2676)-Indjic,A (2618) Chess.com INT 2020}) 13. Rhe1 {[%emt 0:00:30]} Be7 {[%emt 0:00:00]} 14. Nd5 (14. a3 $11) 14... Nxd5 $1 $15 {[%emt 0:01:00]} 15. exd5 {[%emt 0:00:00]} Bg4 {[%emt 0:00:30] [#]} ({Black should try} 15... Bd7 $15) 16. Bxe5 $1 $14 {[%emt 0:01:30]} dxe5 {[%emt 0:00:00]} 17. d6 {[%emt 0:00:30][%cal Oe1e5] And now Rxe5! would win.} Bf6 {[%emt 0:01:00] Black is now going downhill.} (17... O-O $14 18. dxe7 Qxe7) 18. Nxe5 $1 $18 {[%emt 0:00:30]} Bxd1 {[%emt 0:00:30]} 19. d7+ {[%emt 0:00:00]} Kf8 {[%emt 0:00:00]} 20. dxc8=Q {[%emt 0:00:00] The board is on fire.} Qxc8 {[%emt 0:00:00]} 21. Nd7+ $1 $40 {[%emt 0:00:00][%mdl 128] White attacks with force.} (21. Kxd1 Kg7 22. Qb3 Rd8+ 23. Kc1 Bxe5 24. Rxe5 Qg4 $11) 21... Kg7 {[%emt 0:00:00][%cal Od1c2] White must now prevent ...Bxc2!} 22. Nxf6 {[%emt 0:02:00] White is more active.} (22. Kxd1 $2 Rd8 23. Kc1 Rxd7 $19) (22. Rxd1 Qc6 $16) (22. Qxd1 $2 Rd8 23. Re4 Rxd7 $19) 22... Kxf6 {[%emt 0:02:00]} (22... Qxc2+ $2 23. Qxc2 Bxc2 24. Ne8+ Rxe8 25. Rxe8) 23. Rxd1 $16 {[%emt 0:00:30][%mdl 4096] Endgame KQR-KQR} (23. Qxd1 Re8 $16) (23. Qd4+ Kg6 24. Rxd1 (24. Kxd1 $2 Rd8 $19) 24... Re8 $16) 23... Re8 {[%emt 0:00:30]} 24. Qh7 $1 {[%emt 0:00:30]} (24. Qd4+ $6 Kg6 $16) 24... Rh8 {[%emt 0:00:30]} 25. Qe4 {[%emt 0:00:30]} Re8 {[%emt 0:00:00] [#]} (25... Qb8 $142 26. Rd3 Kg7) 26. Rd6+ $1 $18 (26. Qd4+ $6 Kg6 $16) 26... Re6 {[%emt 0:01:00] [#]} 27. Rxe6+ {[%emt 0:00:00]} fxe6 {[%emt 0:00:30] KQ-KQ} 28. Qh7 {[%emt 0:01:30] Inhibits Qc7.} Qc4 {[%emt 0:00:30]} 29. Qxh6+ {[%emt 0:00:30]} (29. Qxb7 Qf1+ 30. Kd2 Qxf2+ 31. Kd3 Qf5+ 32. Qe4 Qb5+ 33. c4 Qxb2 $16) 29... Kf7 {[%emt 0:00:30]} 30. Qh5+ {[%emt 0:00:30]} ({Don't take} 30. Qxg5 Qf1+ 31. Kd2 Qxf2+ 32. Kd3 Qf1+ 33. Kc3 Qe1+ 34. Kb3 b5 35. Qf4+ Ke8 36. Qb8+ Kf7 37. Qc7+ Ke8 38. Qc8+ Ke7 39. Qxa6 Qe3+ 40. c3 Qe2 41. Qb7+ Kd6 42. Qb6+ Ke7 43. Qc5+ Kf7 44. Qc7+ Kf6 45. Qf4+ Ke7) 30... Kf8 {[%emt 0:00:00]} 31. Qf3+ {[%emt 0:00:30]} ({Don't play} 31. Qxg5 Qf1+ 32. Kd2 Qxf2+ 33. Kc3 Qe1+ 34. Kb3 b5 $18) 31... Kg8 {[%emt 0:00:00]} 32. b3 {[%emt 0:00:00]} ({Not} 32. Qxb7 Qf4+ 33. Kb1 Qxf2 $18) 32... Qd4 {[%emt 0:00:00]} 33. Kb1 {[%emt 0:00:00] Inhibits Qa1+.} b5 {[%emt 0:00:00]} 34. Qe3 {[%emt 0:00:00]} Qd5 {[%emt 0:00:00]} 35. f3 {[%emt 0:00:00]} b4 {[%emt 0:00:00]} (35... Kf7 $142 36. c3 Qd6 37. Qxg5 Qxh2) 36. Qe4 {[%emt 0:00:00] Hoping for Qxd5.} Qd6 {[%emt 0:03:30]} 37. Qg6+ {[%emt 0:00:00] White is clearly winning.} Kf8 {[%emt 0:00:00]} 38. Qxg5 {[%emt 0:00:00]} Qxh2 {[%emt 0:00:00]} 39. Qf6+ {[%emt 0:00:00]} Ke8 {[%emt 0:00:00]} 40. Qxe6+ {[%emt 0:00:00]} Kd8 {[%emt 0:00:00]} 41. Qb6+ {[%emt 0:14:07]} (41. Qf6+ $142 Kd7 42. g4) 41... Kd7 {[%emt 0:32:30]} 42. Qxb4 {[%emt 0:01:32] Weighted Error Value: White=0.24 (precise) /Black=0.37} 1-0

[Event "Bangabandhu Premier Div League 2022"]
[Site "Dhaka"]
[Date "2022.12.02"]
[Round "3.1"]
[White "Haque, Rezaul"]
[Black "Hossain, Enamul"]
[Result "0-1"]
[ECO "A07"]
[WhiteElo "1949"]
[BlackElo "2392"]
[Annotator "TA"]
[PlyCount "72"]
[EventDate "2022.11.30"]
[EventType "team-tourn"]
[EventCountry "BAN"]
[SourceTitle "playchess.com"]
[Source "ChessBase"]
[SourceQuality "1"]
[TimeControl "40/5400+30:1800+30"]

{[%evp 9,72,0,0,0,0,0,4,0,0,0,18,8,29,-14,-2,-47,-50,-41,-33,-67,-60,-60,-37,-47,-37,-51,-46,-56,-52,-49,-62,-87,-83,-87,-99,-110,-122,-123,-123,-124,-117,-110,-135,-120,-131,-113,-116,-185,-185,-185,-185,-211,-205,-381,-328,-373,-389,-388,-383,-381,-378,-352,-304,-386,-392]} 1. Nf3 {[%emt 0:00:05]} d5 {[%emt 0:00:49]} 2. g3 {[%emt 0:00:10]} g6 {[%emt 0:00:37]} 3. Bg2 {[%emt 0:00:12]} Bg7 {[%emt 0:00:07]} 4. d3 {[%emt 0:00:53]} e5 {[%emt 0:00:19]} 5. O-O {[%emt 0:00:20]} Nc6 {[%emt 0:01:21]} 6. c3 {[%emt 0:01:07] A07: Réti Opening: New York and Capablanca Systems.} Nge7 {[%emt 0:02:22]} 7. e4 {[%emt 0:01:07]} d4 {[%emt 0:02:37]} 8. cxd4 {[%emt 0:04:33] The position is equal.} Nxd4 {[%emt 0:01:48]} 9. Nxd4 {[%emt 0:00:11]} Qxd4 {[%emt 0:00:14]} 10. Nc3 {[%emt 0:00:49] [#]} (10. Qc2 $5 {[%cal Rc2c7]}) 10... Be6 $146 {[%emt 0:01:56]} ({Predecessor:} 10... c6 11. Be3 Qd6 12. Qc2 O-O 13. Rfd1 b6 14. a3 c5 15. b4 cxb4 16. axb4 Bg4 17. f3 Bd7 18. b5 Rfc8 19. Qb2 Rc7 20. Bf1 {½-½ (20) Troyke,C (2332)-Zajogin,A (2413) Germany 2018}) 11. Be3 {[%emt 0:05:32]} (11. Nd5 {seems wilder.} Bxd5 12. Be3 Qxb2 13. exd5 O-O 14. Bc5) 11... Qd7 {[%emt 0:00:32]} 12. Qa4 {[%emt 0:04:46]} Qxa4 {[%emt 0:06:51]} 13. Nxa4 {[%emt 0:00:11]} b6 {[%emt 0:00:05]} 14. Nc3 {[%emt 0:06:43]} O-O-O $1 {[%emt 0:02:48]} 15. Rfd1 {[%emt 0:01:42]} Rd7 {[%emt 0:03:36]} 16. b4 {[%emt 0:04:29]} Rhd8 {[%emt 0:03:32]} 17. Bf1 {[%emt 0:01:20]} Nc6 {[%emt 0:03:06]} 18. a3 {[%emt 0:00:39]} Kb8 {[%emt 0:00:35]} 19. Rdc1 {[%emt 0:11:56]} Nd4 {[%emt 0:01:42] And now ...Nb3 would win.} 20. Bxd4 {[%emt 0:02:11] White is now going downhill.} Rxd4 {[%emt 0:00:17]} 21. Nb5 {[%emt 0:03:05]} R4d7 {[%emt 0:01:44]} 22. a4 {[%emt 0:00:25]} Bf8 {[%emt 0:02:45]} 23. Rab1 {[%emt 0:04:42]} a6 {[%emt 0:00:47]} 24. Na3 {[%emt 0:00:58]} a5 {[%emt 0:03:13]} 25. Nc2 {[%emt 0:00:18]} axb4 {[%emt 0:00:20] Black is more active.} 26. Nxb4 {[%emt 0:00:21]} Bxb4 {[%emt 0:00:08]} 27. Rxb4 {[%emt 0:00:28]} Rd4 $36 {[%emt 0:00:04][%mdl 2048] Against a5. Keeping White busy.} 28. Rcb1 {[%emt 0:01:26]} (28. Rbb1 $17) 28... Rxb4 $19 {[%emt 0:00:52]} 29. Rxb4 {[%emt 0:00:37][%mdl 4096] Endgame KRB-KRB} Rd4 {[%emt 0:00:54] Against a5} 30. Rb5 {[%emt 0:00:32]} Rxa4 {[%emt 0:01:57]} 31. Rxe5 $2 {[%emt 0:00:03]} (31. f4) 31... c6 {[%emt 0:00:42] aiming for ...Kc7.} 32. f4 {[%emt 0:08:56] [#]} Kc7 $1 {[%emt 0:00:38]} 33. d4 {[%emt 0:06:33]} Rxd4 {[%emt 0:01:07] Threatens to win with ...Kd6.} 34. f5 {[%emt 0:00:31]} gxf5 {[%emt 0:00:52]} 35. exf5 {[%emt 0:00:12]} Bd5 {[%emt 0:00:08]} 36. f6 {[%emt 0:04:51]} b5 {[%emt 0:00:27] Weighted Error Value: White=0.21 (precise) /Black=0.02 (flawless)} 0-1

[Event "Bangabandhu Premier Div League 2022"]
[Site "Dhaka"]
[Date "2022.12.02"]
[Round "3.2"]
[White "Narayanan.S.L"]
[Black "Rahman, Siddiqur"]
[Result "1-0"]
[ECO "D45"]
[WhiteElo "2673"]
[BlackElo "1970"]
[Annotator "TA"]
[PlyCount "96"]
[EventDate "2022.11.30"]
[EventType "team-tourn"]
[EventCountry "BAN"]
[SourceTitle "playchess.com"]
[Source "ChessBase"]
[SourceQuality "1"]
[TimeControl "40/5400+30:1800+30"]

{[%evp 13,96,34,41,39,41,40,39,39,39,43,33,8,23,0,0,0,0,0,2,6,10,0,9,0,0,0,0,0,14,-37,0,0,0,0,5,12,16,21,28,37,49,29,61,68,159,150,209,177,167,166,156,126,188,188,188,188,188,176,217,214,247,240,325,324,308,318,383,352,522,526,526,511,794,606,967,839,1395,926,29972,29973,29972,29972,6483,11460,5293]} 1. d4 {[%emt 0:00:03]} d5 {[%emt 0:00:08]} 2. c4 {[%emt 0:00:05]} c6 {[%emt 0:00:21]} 3. Nf3 {[%emt 0:00:17]} Nf6 {[%emt 0:02:20]} 4. Nc3 {[%emt 0:00:12]} e6 {[%emt 0:00:42]} 5. e3 {[%emt 0:00:31]} Nbd7 {[%emt 0:04:00]} 6. Qc2 {[%emt 0:00:07]} a6 {[%emt 0:01:30]} 7. b3 {[%emt 0:00:58]} b5 {[%emt 0:01:23]} 8. Bb2 {[%emt 0:07:54] D45: Semi-Slav: 5 e3.} Bb7 {[%emt 0:08:42]} 9. c5 {[%emt 0:00:24]} g6 {[%emt 0:02:05]} 10. Bd3 {[%emt 0:01:36] White is slightly better.} Bg7 {[%emt 0:01:01] [#]} 11. O-O $146 {[%emt 0:10:30]} ({Predecessor:} 11. b4 a5 12. a3 O-O 13. O-O Qc7 14. h3 Nb8 15. Ne2 Na6 16. bxa5 Nd7 17. Bc3 {0-1 (39) Yuffa,D (2527)-Kevlishvili,R (2445) Tarvisio 2017}) 11... O-O {[%emt 0:01:25][%cal Oe6e5]} 12. e4 {[%emt 0:01:23] Prevents e5.} b4 {[%emt 0:17:56]} 13. Na4 {[%emt 0:00:14] next e5 is good for White.} dxe4 {[%emt 0:01:14]} 14. Bxe4 {[%emt 0:00:07]} Nxe4 {[%emt 0:00:57]} 15. Qxe4 {[%emt 0:00:06]} Nf6 {[%emt 0:00:15]} 16. Qc2 {[%emt 0:00:51]} Nd5 {[%emt 0:01:12] Against Nb6} 17. Bc1 {[%emt 0:00:32]} a5 {[%emt 0:01:31]} 18. Bg5 {[%emt 0:02:23]} Qc7 {[%emt 0:04:34]} 19. Rfe1 {[%emt 0:00:22]} Ba6 {[%emt 0:04:08]} 20. Nb2 {[%emt 0:12:01]} h6 {[%emt 0:10:56]} 21. Bh4 {[%emt 0:02:42]} (21. Bd2 $11) 21... Qf4 {[%emt 0:07:37]} 22. Bg3 {[%emt 0:02:57]} (22. Nc4 {is interesting.} Bxd4 23. Bg3 Qf6 24. Nxd4 Qxd4 25. Be5) 22... Qf5 {[%emt 0:00:57]} 23. Qd2 {[%emt 0:02:56]} g5 {[%emt 0:06:52]} 24. Ne5 {[%emt 0:02:28]} Bxe5 {[%emt 0:05:37]} 25. Rxe5 {[%emt 0:02:04]} Qf6 {[%emt 0:01:01]} 26. Rae1 {[%emt 0:10:18]} Ne7 {[%emt 0:06:15]} 27. Nd1 {[%emt 0:07:30][%cal Bb2d1,Bd1e3,Be3g4,Bg4e5][%mdl 32]} Ng6 {[%emt 0:00:45] Prevents f4.} 28. R5e4 {[%emt 0:00:11]} Rad8 {[%emt 0:00:19] [#]} (28... Rfd8 $14) 29. Ne3 $1 $16 {[%emt 0:01:41]} Rd7 {[%emt 0:02:11]} (29... Qg7 $16 {was necessary.} 30. Bd6 Bb5 31. Bxf8 Nxf8) 30. Bd6 {[%emt 0:03:27]} Rfd8 {[%emt 0:03:10]} 31. Ng4 {[%emt 0:00:11]} Qg7 {[%emt 0:00:05]} 32. Ne5 {[%emt 0:00:03] Inhibits f5. White is more active.} Rxd6 {[%emt 0:01:32]} (32... Nxe5 $16 {might work better.} 33. dxe5 (33. Rxe5 Qg6 $16) 33... Qg6) 33. cxd6 $18 {[%emt 0:00:07]} Rxd6 {[%emt 0:00:03]} 34. Nxg6 {[%emt 0:01:46]} Qxg6 {[%emt 0:00:01]} 35. Qe3 {[%emt 0:00:33] Inhibits c5.} Rd5 {[%emt 0:01:48]} 36. Re5 {[%emt 0:00:18]} Bd3 {[%emt 0:00:37]} 37. Rxd5 {[%emt 0:00:20]} cxd5 {[%emt 0:00:29][%mdl 4096] Endgame KQR-KQB} 38. Rc1 {[%emt 0:00:13]} Bb1 {[%emt 0:01:33]} 39. Qd2 {[%emt 0:05:39]} Qe4 {[%emt 0:01:32]} 40. f3 {[%emt 0:01:47]} Qd3 {[%emt 0:00:40]} (40... Qf5 {was called for.} 41. Rc5 h5 42. Rxa5 Kg7) 41. Qxd3 {[%emt 0:30:25]} Bxd3 {[%emt 0:30:02] KR-KB} 42. Rc5 {[%emt 0:00:07]} a4 {[%emt 0:00:07]} (42... Kf8 $142 43. Rxa5 Bb1) 43. bxa4 {[%emt 0:00:06][%cal Bb3a4,Ba4a5,Ba5a6][%mdl 32]} Bc4 {[%emt 0:00:01] [#]} 44. Rb5 $1 {[%emt 0:00:39][%mdl 512]} Bxa2 {[%emt 0:01:21]} (44... Kf8 45. Rxb4) 45. Rxb4 {[%emt 0:00:14] And now a5 would win.} Kf8 {[%emt 0:00:19]} 46. a5 {[%emt 0:00:05]} Bc4 {[%emt 0:00:18] [#]} 47. Rxc4 $1 {[%emt 0:00:10][%mdl 512]} dxc4 {[%emt 0:00:16]} 48. a6 {[%emt 0:00:05] White wants to mate with a7.} Kg8 {[%emt 0:02:42] Weighted Error Value: White=0.11 (very precise) /Black=0.42} 1-0